bitfinex/quotes_BTCUSD_20241130
["timestamp","ask_amount","ask_price","bid_price","bid_amount"]
[1732978062585,1.20759355,96613.0,96612.0,0.00100099]
[1732978062820,1.22696906,96613.0,96612.0,0.00272919]
[1732978063035,1.25796987,96613.0,96612.0,0.00272919]
[1732978063279,1.24828199,96613.0,96612.0,0.00272919]
[1732978063495,1.22267126,96613.0,96612.0,1.9e-07]
[1732978063717,0.02028826,96612.0,96611.0,1.9e-07]
[1732978063936,1.09117096,96612.0,96611.0,1.9e-07]
[1732978064169,1.08934028,96612.0,96611.0,1.9e-07]
[1732978065036,1.09334028,96612.0,96611.0,1.9e-07]
[1732978065733,1.10034028,96612.0,96611.0,0.00100019]
[1732978066174,1.1003393,96612.0,96611.0,0.00100019]
[1732978066438,0.20140526,96602.0,96601.0,0.23961558]
[1732978066649,1.11979383,96602.0,96601.0,0.23961558]
[1732978066866,1.16295113,96602.0,96601.0,0.24738074]
[1732978067080,1.16295113,96602.0,96601.0,0.23961558]
[1732978067350,1.15326742,96602.0,96601.0,0.23961558]
[1732978067596,1.16295733,96602.0,96601.0,0.23961558]
[1732978067886,1.15526739,96602.0,96601.0,0.23967521]
[1732978068100,1.17464225,96602.0,96601.0,0.23967521]
[1732978069333,1.17664225,96602.0,96601.0,0.23923757]
[1732978070947,1.15526739,96602.0,96601.0,0.23923757]
[1732978071184,1.08266739,96602.0,96601.0,0.23923757]
[1732978071868,1.08066739,96602.0,96601.0,0.23923757]
[1732978072130,0.96782218,96602.0,96601.0,0.23923757]
[1732978072368,0.97582218,96602.0,96601.0,0.23923757]
[1732978072601,0.96613229,96602.0,96601.0,0.24706075]
[1732978072817,0.96613229,96602.0,96601.0,0.23923757]
[1732978073043,0.96613229,96602.0,96601.0,0.24706075]
[1732978073269,0.96113229,96602.0,96601.0,0.24706075]
[1732978073497,0.95313229,96602.0,96601.0,0.24706075]
[1732978073941,0.95644238,96602.0,96601.0,0.24706075]
[1732978074471,0.95144238,96602.0,96601.0,0.24706075]
[1732978074865,0.95544238,96602.0,96601.0,0.24706075]
[1732978075131,0.94744238,96602.0,96601.0,0.24706075]
[1732978075560,0.95444238,96602.0,96601.0,0.24706075]
[1732978076614,0.96412709,96602.0,96601.0,0.24706075]
[1732978077549,0.96412844,96602.0,96601.0,0.24706075]
[1732978078503,0.96412844,96602.0,96601.0,0.23923757]
[1732978080561,0.95444238,96602.0,96601.0,0.23923757]
[1732978080819,0.96413057,96602.0,96601.0,0.23923757]
[1732978082204,0.91914209,96602.0,96601.0,0.29516075]
[1732978082871,0.90885383,96602.0,96601.0,0.29516075]
[1732978083367,0.90814209,96602.0,96601.0,0.29516075]
[1732978083589,0.90814209,96602.0,96601.0,0.29616075]
[1732978083826,0.90814209,96602.0,96601.0,0.5746275]
[1732978084047,0.89785383,96602.0,96601.0,0.33717696]
[1732978084510,0.90814209,96602.0,96601.0,0.33717696]
[1732978084729,0.90814209,96602.0,96601.0,0.05871021]
[1732978084958,0.90814209,96602.0,96601.0,0.05771021]
[1732978085199,0.90814209,96602.0,96601.0,0.04988703]
[1732978085445,0.90814209,96602.0,96601.0,0.05188703]
[1732978085682,0.90814209,96602.0,96601.0,0.04988703]
[1732978085903,0.90900639,96602.0,96601.0,0.04988703]
[1732978086125,0.89871813,96602.0,96601.0,0.04988703]
[1732978087484,0.90900639,96602.0,96601.0,0.04988703]
[1732978088390,0.94456373,96602.0,96601.0,0.04988703]
[1732978088576,0.94456373,96602.0,96601.0,0.32842524]
[1732978089054,0.94456373,96602.0,96601.0,0.33626278]
[1732978089794,0.94456373,96602.0,96601.0,0.33614254]
[1732978090029,0.94456373,96602.0,96601.0,0.05772457]
[1732978090472,0.94456373,96602.0,96601.0,0.33614254]
[1732978094895,0.94456373,96602.0,96601.0,0.05772457]
[1732978095315,0.94456373,96602.0,96601.0,0.04988703]
[1732978095909,0.94456373,96602.0,96601.0,0.32820966]
[1732978096113,0.24456373,96602.0,96601.0,0.32820966]
[1732978096313,0.24456373,96602.0,96601.0,0.33603516]
[1732978097335,0.24456373,96602.0,96601.0,0.00961253]
[1732978097736,0.94456373,96602.0,96601.0,0.00961253]
[1732978098586,0.94456373,96602.0,96601.0,0.00178703]
[1732978099752,0.96076056,96602.0,96601.0,0.00178703]
[1732978100749,1.09436056,96602.0,96601.0,0.00178703]
[1732978100996,1.10404984,96602.0,96601.0,0.00178703]
[1732978101222,1.10904984,96602.0,96601.0,0.00178703]
[1732978101451,1.10904984,96602.0,96601.0,3e-08]
[1732978101679,1.0734925,96602.0,96601.0,3e-08]
[1732978101800,1.10904984,96602.0,96601.0,3e-08]
[1732978104544,0.12380826,96599.0,96598.0,4.3e-07]
[1732978104764,1.05109195,96599.0,96598.0,4.3e-07]
[1732978105013,0.36895055,96599.0,96598.0,4.3e-07]
[1732978105237,0.34926127,96599.0,96598.0,4.3e-07]
[1732978105466,0.2361278,96599.0,96598.0,4.3e-07]
[1732978105737,0.20368088,96599.0,96598.0,4.3e-07]
[1732978105960,0.20551156,96599.0,96598.0,4.3e-07]
[1732978106729,0.20751156,96599.0,96598.0,4.3e-07]
[1732978107190,0.21779982,96599.0,96598.0,4.3e-07]
[1732978107416,0.22487398,96599.0,96598.0,4.3e-07]
[1732978107854,0.21458572,96599.0,96598.0,4.3e-07]
[1732978108074,0.92670466,96599.0,96598.0,4.3e-07]
[1732978108287,0.91458572,96599.0,96598.0,4.3e-07]
[1732978108531,0.02028826,96591.0,96590.0,0.23808242]
[1732978108763,0.1227221,96591.0,96590.0,0.24599546]
[1732978108982,0.24610061,96591.0,96590.0,0.24599546]
[1732978109209,0.94426993,96591.0,96590.0,0.24599546]
[1732978109434,0.94426993,96591.0,96590.0,0.23814437]
[1732978109876,0.94426993,96591.0,96590.0,0.24599546]
[1732978110869,0.95395946,96591.0,96590.0,0.24599546]
[1732978111086,0.95795946,96591.0,96590.0,0.24599546]
[1732978111531,0.94826993,96591.0,96590.0,0.24599546]
[1732978111728,0.94826993,96591.0,96590.0,0.24699546]
[1732978111966,0.94826993,96591.0,96590.0,0.24599546]
[1732978112378,0.91882301,96591.0,96590.0,0.24599546]
[1732978112780,0.92781705,96591.0,96590.0,0.24599546]
[1732978113650,1.31696226,96591.0,96590.0,0.10105346]
[1732978113796,1.31696226,96591.0,96590.0,0.03893546]
[1732978113797,1.34352556,96591.0,96590.0,0.03893546]
[1732978114018,1.34352556,96591.0,96590.0,0.03108437]
[1732978114266,1.35321291,96591.0,96590.0,0.03108437]
[1732978114714,1.35321291,96591.0,96590.0,3.7e-07]
[1732978114913,1.31765557,96591.0,96590.0,3.7e-07]
[1732978115139,1.35321291,96591.0,96590.0,3.7e-07]
[1732978118398,1.35320388,96591.0,96590.0,3.7e-07]
[1732978119507,1.22690388,96591.0,96590.0,3.7e-07]
[1732978120675,1.22690388,96591.0,96590.0,0.00086427]
[1732978120893,1.10377041,96591.0,96590.0,0.00086427]
[1732978121119,0.96405867,96591.0,96590.0,0.00086427]
[1732978121343,0.95438035,96591.0,96590.0,0.00086427]
[1732978122249,0.91882301,96591.0,96590.0,0.00086427]
[1732978122476,0.94409209,96591.0,96590.0,0.00086427]
[1732978122700,0.95438035,96591.0,96590.0,0.00086427]
[1732978123432,1.05722556,96591.0,96590.0,0.00086427]
[1732978125052,0.25438035,96591.0,96590.0,0.00086427]
[1732978125531,0.21882301,96591.0,96590.0,0.00086427]
[1732978126017,0.25438035,96591.0,96590.0,0.00086427]
[1732978128070,0.95438035,96591.0,96590.0,0.00086427]
[1732978129710,0.96406818,96591.0,96590.0,0.00086427]
[1732978129944,0.95438035,96591.0,96590.0,0.00086427]
[1732978134091,0.95524425,96591.0,96590.0,0.00086427]
[1732978135180,0.96493469,96591.0,96590.0,0.00086427]
[1732978135407,0.95524425,96591.0,96590.0,0.00086427]
[1732978135637,0.96493514,96591.0,96590.0,0.00086427]
[1732978135856,0.95524425,96591.0,96590.0,0.00086427]
[1732978139150,0.96493737,96591.0,96590.0,0.00086427]
[1732978141253,0.95524425,96591.0,96590.0,0.00086427]
[1732978142652,0.96493772,96591.0,96590.0,0.00086427]
[1732978143029,0.95524425,96591.0,96590.0,0.00086427]
[1732978143291,0.96493812,96591.0,96590.0,0.00086427]
[1732978148236,0.96494313,96591.0,96590.0,0.00086427]
[1732978149797,0.26494313,96591.0,96590.0,0.00086427]
[1732978150001,0.25524425,96591.0,96590.0,0.00086427]
[1732978152635,0.95524425,96591.0,96590.0,0.00086427]
[1732978152860,0.9649476,96591.0,96590.0,0.00086427]
[1732978154424,0.95465934,96591.0,96590.0,0.00882158]
[1732978154681,0.9649476,96591.0,96590.0,0.00882158]
[1732978155558,0.95524425,96591.0,96590.0,0.00882158]
[1732978156025,0.90939865,96591.0,96590.0,0.00882158]
[1732978156254,0.90939865,96591.0,96590.0,0.41191063]
[1732978156475,0.90939865,96591.0,96590.0,0.00086427]
[1732978156695,0.90968691,96591.0,96590.0,0.00882158]
[1732978156917,0.20939865,96591.0,96590.0,0.00086427]
[1732978157122,0.20968691,96591.0,96590.0,0.00882158]
[1732978157333,0.20722933,96591.0,96590.0,0.00086427]
[1732978157554,0.20722933,96591.0,96590.0,0.00882158]
[1732978157785,0.20722933,96591.0,96590.0,0.00879523]
[1732978158303,0.20122933,96591.0,96590.0,0.00879523]
[1732978158520,0.20122933,96591.0,96590.0,0.01079523]
[1732978158947,0.20422933,96591.0,96590.0,0.01079523]
[1732978159592,0.20122933,96591.0,96590.0,0.01079523]
[1732978159808,0.20122933,96591.0,96590.0,0.01279523]
[1732978160637,0.21151759,96591.0,96590.0,0.01279523]
[1732978160851,0.20122933,96591.0,96590.0,0.01279523]
[1732978161511,0.19968691,96591.0,96590.0,0.01279523]
[1732978161717,0.20151759,96591.0,96590.0,0.03579523]
[1732978161926,0.20122933,96591.0,96590.0,0.03579523]
[1732978162357,0.19939865,96591.0,96590.0,0.03579523]
[1732978162566,0.19939865,96591.0,96590.0,0.11789523]
[1732978162787,0.19939865,96591.0,96590.0,0.10996427]
[1732978162997,0.19939865,96591.0,96590.0,0.11786357]
[1732978163207,0.19939865,96591.0,96590.0,0.26760878]
[1732978163444,0.19939865,96591.0,96590.0,0.25970948]
[1732978163671,0.19968691,96591.0,96590.0,0.26760878]
[1732978163900,0.19968691,96591.0,96590.0,0.67908323]
[1732978164345,0.19968691,96591.0,96590.0,0.26760878]
[1732978164979,0.19968691,96591.0,96590.0,0.6790752]
[1732978165187,0.19968691,96591.0,96590.0,0.26760878]
[1732978165860,0.20151759,96591.0,96590.0,0.16476357]
[1732978166124,0.23707493,96591.0,96590.0,0.16476357]
[1732978166343,0.23524425,96591.0,96590.0,0.16476357]
[1732978167223,0.19968691,96591.0,96590.0,0.16476357]
[1732978167921,0.19968691,96591.0,96590.0,0.57622999]
[1732978168154,0.19968691,96591.0,96590.0,0.16476357]
[1732978168381,0.19968691,96591.0,96590.0,0.57622999]
[1732978169226,0.19968691,96591.0,96590.0,0.16476357]
[1732978181352,0.20151759,96591.0,96590.0,0.16476357]
[1732978181788,0.23386885,96591.0,96590.0,0.16476357]
[1732978181976,0.23203817,96591.0,96590.0,0.16476357]
[1732978182929,0.23203817,96591.0,96590.0,0.01276357]
[1732978183838,0.23203817,96591.0,96590.0,0.00486427]
[1732978184495,0.23203817,96591.0,96590.0,0.0127747]
[1732978184965,0.23203817,96591.0,96590.0,0.00486427]
[1732978186077,0.23203817,96591.0,96590.0,0.00286427]
[1732978186304,0.23203817,96591.0,96590.0,0.00386427]
[1732978186530,0.23203817,96591.0,96590.0,0.00186427]
[1732978186714,0.23203817,96591.0,96590.0,0.00386427]
[1732978187853,0.23203817,96591.0,96590.0,0.0117747]
[1732978188072,0.23203817,96591.0,96590.0,0.00386427]
[1732978190119,0.23203817,96591.0,96590.0,0.28264877]
[1732978190359,0.23203817,96591.0,96590.0,0.29056794]
[1732978190587,0.23203817,96591.0,96590.0,0.0117747]
[1732978191052,0.23203817,96591.0,96590.0,0.00386427]
[1732978191945,0.23203817,96591.0,96590.0,0.0117747]
[1732978198804,0.23203817,96591.0,96590.0,0.41590624]
[1732978198999,0.23203817,96591.0,96590.0,0.00386427]
[1732978199275,0.23203817,96591.0,96590.0,0.01177849]
[1732978199725,0.23203817,96591.0,96590.0,0.42382046]
[1732978200390,0.23203817,96591.0,96590.0,0.01177849]
[1732978201079,0.23203817,96591.0,96590.0,0.00386427]
[1732978203473,0.23203817,96591.0,96590.0,0.41622928]
[1732978203698,0.23203817,96591.0,96590.0,0.00386427]
[1732978203928,0.23203817,96591.0,96590.0,0.01177849]
[1732978204655,0.37133817,96591.0,96590.0,0.01177849]
[1732978204909,0.37133817,96591.0,96590.0,0.01077849]
[1732978205402,0.37233817,96591.0,96590.0,0.01077849]
[1732978205663,1.07233817,96591.0,96590.0,0.01077849]
[1732978205888,1.08104346,96591.0,96590.0,0.01077849]
[1732978206146,1.08504346,96591.0,96590.0,0.00086427]
[1732978206584,1.08604346,96591.0,96590.0,0.00086427]
[1732978207210,1.08504346,96591.0,96590.0,0.00086427]
[1732978207691,1.09204346,96591.0,96590.0,0.00086427]
[1732978207915,1.08104346,96591.0,96590.0,0.00086427]
[1732978208180,1.08504346,96591.0,96590.0,0.00086427]
[1732978208607,1.08104346,96591.0,96590.0,0.00086427]
[1732978209074,1.08504346,96591.0,96590.0,0.00086427]
[1732978209829,1.09104346,96591.0,96590.0,0.00086427]
[1732978210271,0.39104346,96591.0,96590.0,0.00086427]
[1732978210966,0.39104346,96591.0,96572.0,0.0017274]
[1732978210967,0.01,96573.0,96572.0,0.0017274]
[1732978211186,0.471796,96573.0,96572.0,0.0017274]
[1732978211407,0.47291062,96573.0,96572.0,0.0017274]
[1732978212286,0.27383726,96572.0,96571.0,4e-07]
[1732978212546,0.47291162,96572.0,96571.0,4e-07]
[1732978213052,0.47291162,96572.0,96569.0,0.19644539]
[1732978213053,0.11383926,96570.0,96569.0,0.19644539]
[1732978213280,0.20952518,96570.0,96569.0,0.19644539]
[1732978213508,0.91247048,96570.0,96569.0,0.19644539]
[1732978213757,0.9106398,96570.0,96569.0,0.19644539]
[1732978214018,0.91114194,96570.0,96569.0,0.11360139]
[1732978214267,0.91114194,96570.0,96569.0,0.09289039]
[1732978214512,0.91714194,96570.0,96569.0,0.09289039]
[1732978214753,0.91714194,96570.0,96569.0,0.03075739]
[1732978214984,0.11384026,96569.0,96568.0,9.9e-07]
[1732978215213,0.91583945,96569.0,96568.0,9.9e-07]
[1732978215446,0.91400877,96569.0,96568.0,9.9e-07]
[1732978215669,0.94578157,96569.0,96568.0,9.9e-07]
[1732978215926,0.96510472,96569.0,96568.0,9.9e-07]
[1732978216404,0.97010472,96569.0,96568.0,9.9e-07]
[1732978216884,0.98831047,96569.0,96568.0,9.9e-07]
[1732978219681,0.97210472,96569.0,96568.0,9.9e-07]
[1732978219932,0.11384726,96563.0,96562.0,3.9e-07]
[1732978220188,0.9116253,96563.0,96562.0,3.9e-07]
[1732978220417,0.94156742,96563.0,96562.0,3.9e-07]
[1732978222578,0.94256742,96563.0,96562.0,3.9e-07]
[1732978222793,0.94456742,96563.0,96562.0,3.9e-07]
[1732978223954,0.93456742,96563.0,96562.0,3.9e-07]
[1732978225495,0.93427916,96563.0,96562.0,3.9e-07]
[1732978225753,0.93456742,96563.0,96562.0,3.9e-07]
[1732978225950,0.93427916,96563.0,96562.0,3.9e-07]
[1732978226173,0.93456742,96563.0,96562.0,3.9e-07]
[1732978227018,0.90279462,96563.0,96562.0,3.9e-07]
[1732978227233,0.90250636,96563.0,96562.0,3.9e-07]
[1732978227437,0.90279462,96563.0,96562.0,0.04680039]
[1732978227841,0.90079462,96563.0,96562.0,0.06980039]
[1732978228045,0.89950636,96563.0,96562.0,0.06980039]
[1732978228458,0.89979462,96563.0,96562.0,0.07080039]
[1732978228915,0.89979462,96563.0,96562.0,0.06980039]
[1732978229124,0.89979462,96563.0,96562.0,0.07180039]
[1732978230311,0.90008449,96563.0,96562.0,0.07180039]
[1732978231276,0.90008449,96563.0,96562.0,0.06980039]
[1732978231498,0.90008449,96563.0,96562.0,0.07080039]
[1732978231943,0.90008449,96563.0,96562.0,0.06980039]
[1732978232160,0.90008449,96563.0,96562.0,0.07080039]
[1732978237238,0.90021215,96563.0,96562.0,0.07080039]
[1732978239381,0.90021215,96563.0,96562.0,0.00100039]
[1732978240336,0.20021215,96563.0,96562.0,0.00100039]
[1732978240585,0.20204283,96563.0,96562.0,0.00100039]
[1732978241057,0.18131067,96563.0,96562.0,0.00100039]
[1732978241737,0.88131067,96563.0,96562.0,0.00100039]
[1732978241957,0.87947999,96563.0,96562.0,0.00100039]
[1732978247081,0.87947999,96563.0,96562.0,3.9e-07]
[1732978249737,0.88034369,96563.0,96562.0,3.9e-07]
[1732978256955,0.88034369,96563.0,96562.0,0.01204974]
[1732978258612,0.88034369,96563.0,96562.0,0.01404974]
[1732978264463,0.88034369,96563.0,96562.0,0.01204974]
[1732978265579,0.88034369,96563.0,96562.0,0.01304974]
[1732978269417,0.88034369,96563.0,96562.0,0.29164534]
[1732978269646,0.88034369,96563.0,96562.0,0.01304974]
[1732978272632,0.87992616,96563.0,96562.0,0.01304974]
[1732978272848,0.87992616,96563.0,96562.0,0.29254948]
[1732978273080,0.87992616,96563.0,96562.0,0.33944948]
[1732978273314,0.87992616,96563.0,96562.0,0.13584974]
[1732978274030,0.8796379,96563.0,96562.0,0.13584974]
[1732978274253,0.87992616,96563.0,96562.0,0.13584974]
[1732978276425,0.8796379,96563.0,96562.0,0.13584974]
[1732978276882,0.87992616,96563.0,96562.0,0.13584974]
[1732978278644,0.8796379,96563.0,96562.0,0.13584974]
[1732978279324,0.87992616,96563.0,96562.0,0.13577933]
[1732978280244,0.87992616,96563.0,96562.0,0.15877933]
[1732978280453,0.8796379,96563.0,96562.0,0.15877933]
[1732978280676,0.87992616,96563.0,96562.0,0.15877933]
[1732978280906,0.17992616,96563.0,96562.0,0.15877933]
[1732978283757,0.1796379,96563.0,96562.0,0.15877933]
[1732978284012,0.17992616,96563.0,96562.0,0.15877933]
[1732978284250,0.87992616,96563.0,96562.0,0.03597933]
[1732978285212,0.87992616,96563.0,96562.0,0.03770673]
[1732978286166,0.88483873,96563.0,96562.0,0.03770673]
[1732978286402,0.88512699,96563.0,96562.0,0.03770673]
[1732978287107,0.88512699,96563.0,96562.0,0.45016889]
[1732978287608,0.88512699,96563.0,96562.0,0.03770673]
[1732978287842,0.88512699,96563.0,96562.0,0.45016889]
[1732978289243,0.88512699,96563.0,96562.0,0.03770673]
[1732978297556,0.88483873,96563.0,96562.0,0.03770673]
[1732978297743,0.88512699,96563.0,96562.0,0.03770673]
[1732978310745,0.88512699,96563.0,96562.0,0.01470673]
[1732978312894,0.88512699,96563.0,96562.0,0.42704422]
[1732978313138,0.88483873,96563.0,96562.0,0.42704422]
[1732978313819,0.88483873,96563.0,96562.0,0.01470673]
[1732978318229,0.88483873,96563.0,96562.0,0.42730991]
[1732978318444,0.88483873,96563.0,96562.0,0.01470673]
[1732978318671,0.88483873,96563.0,96562.0,0.42730991]
[1732978319338,0.88483873,96563.0,96562.0,0.01470673]
[1732978319570,0.88483873,96563.0,96562.0,0.42747029]
[1732978320095,0.88483873,96563.0,96562.0,0.01470673]
[1732978320567,0.88483873,96563.0,96562.0,0.42752826]
[1732978321023,0.88483873,96563.0,96562.0,0.42754104]
[1732978321480,0.88483873,96563.0,96562.0,0.01470673]
[1732978321926,0.88483873,96563.0,96562.0,0.42754104]
[1732978322387,0.88483873,96563.0,96562.0,0.01470673]
[1732978323111,0.18483873,96563.0,96562.0,0.42752219]
[1732978324826,0.18483873,96563.0,96562.0,0.01470673]
[1732978325982,0.88483873,96563.0,96562.0,0.01470673]
[1732978333417,0.88483873,96563.0,96562.0,0.06100673]
[1732978336242,0.8796379,96563.0,96562.0,0.06100673]
[1732978338579,0.8796379,96563.0,96562.0,0.01470673]
[1732978339264,0.92782616,96563.0,96562.0,0.01470673]
[1732978339557,0.00028826,96559.0,96558.0,0.4967508]
[1732978339770,1.02576272,96559.0,96558.0,0.29999999]
[1732978339996,1.07068882,96559.0,96558.0,0.29999999]
[1732978340225,1.07068882,96559.0,96558.0,0.27928699]
[1732978340468,1.08068882,96559.0,96558.0,0.19643499]
[1732978340739,1.18353403,96559.0,96558.0,0.13429599]
[1732978340998,1.18353403,96559.0,96558.0,0.09286999]
[1732978341679,1.18353403,96559.0,96558.0,0.05144399]
[1732978341904,1.14831379,96559.0,96558.0,9.9e-07]
[1732978342153,1.20292018,96559.0,96558.0,9.9e-07]
[1732978342642,1.20292018,96559.0,96558.0,0.00172839]
[1732978342862,0.11385926,96552.0,96548.0,0.29999999]
[1732978343114,0.99114611,96552.0,96548.0,0.29999999]
[1732978343298,1.03424153,96552.0,96548.0,0.29999999]
[1732978344307,0.99902129,96552.0,96551.0,6e-07]
[1732978344562,1.02942678,96552.0,96551.0,6e-07]
[1732978344808,1.03342678,96552.0,96551.0,6e-07]
[1732978345050,1.09230545,96552.0,96551.0,6e-07]
[1732978345277,1.0909416,96552.0,96551.0,6e-07]
[1732978345527,1.0909416,96552.0,96548.0,0.29999999]
[1732978345528,0.10386226,96549.0,96548.0,0.19642559]
[1732978345775,0.90011655,96549.0,96548.0,0.15499559]
[1732978345996,0.93239722,96549.0,96548.0,0.11356559]
[1732978346252,0.9517486,96549.0,96548.0,0.11356559]
[1732978346504,0.97110001,96549.0,96548.0,0.11356559]
[1732978346750,0.95174863,96549.0,96548.0,0.11356559]
[1732978346994,0.95474863,96549.0,96548.0,0.11356559]
[1732978347231,0.95974863,96549.0,96548.0,0.05142059]
[1732978347454,0.95174863,96549.0,96548.0,0.00999059]
[1732978347685,0.96074863,96549.0,96548.0,0.00999059]
[1732978347878,0.95474863,96549.0,96548.0,0.00999059]
[1732978348155,0.98269687,96549.0,96548.0,0.00999059]
[1732978348404,0.98969687,96549.0,96548.0,0.00999059]
[1732978348643,0.95174863,96549.0,96548.0,0.00999059]
[1732978348883,0.96038478,96549.0,96548.0,0.00999059]
[1732978349111,0.103584,96540.0,96539.0,0.0009994]
[1732978349336,0.90393944,96540.0,96539.0,0.0009994]
[1732978349568,1.02933944,96540.0,96539.0,0.00944637]
[1732978349807,0.10387426,96538.0,96536.0,0.0017274]
[1732978350043,0.20440415,96538.0,96536.0,0.0017274]
[1732978350298,0.23714748,96538.0,96536.0,0.0017274]
[1732978350507,0.9353168,96538.0,96536.0,0.0017274]
[1732978351192,1.05079816,96538.0,96537.0,0.21713199]
[1732978351414,1.12699816,96538.0,96537.0,0.19641499]
[1732978351884,1.14632337,96538.0,96537.0,0.19641499]
[1732978352388,1.04347816,96538.0,96537.0,0.19641499]
[1732978352613,1.04247816,96538.0,96537.0,0.19641499]
[1732978352837,1.04347816,96538.0,96537.0,0.19641499]
[1732978353061,1.04047816,96538.0,96537.0,0.19641499]
[1732978353320,1.03484201,96538.0,96537.0,0.19641499]
[1732978353783,1.0155168,96538.0,96537.0,0.19641499]
[1732978354008,0.9393168,96538.0,96537.0,0.19641499]
[1732978354690,0.9393168,96538.0,96537.0,0.19814239]
[1732978356063,0.9383168,96538.0,96537.0,0.19814239]
[1732978356302,0.9353168,96538.0,96537.0,0.19814239]
[1732978356518,0.9393168,96538.0,96537.0,0.19814239]
[1732978356742,0.9363168,96538.0,96537.0,0.19814239]
[1732978356967,0.9353168,96538.0,96537.0,0.19814239]
[1732978357196,0.9393168,96538.0,96537.0,0.19814239]
[1732978357884,0.9383168,96538.0,96537.0,0.19814239]
[1732978358097,0.9363168,96538.0,96537.0,0.0017274]
[1732978359777,0.8327308,96538.0,96526.0,0.29951849]
[1732978360043,0.103597,96527.0,96526.0,0.29951849]
[1732978360230,0.9031747,96527.0,96526.0,0.29951849]
[1732978363939,0.9031747,96527.0,96526.0,0.30151849]
[1732978364389,0.9031747,96527.0,96526.0,0.29951849]
[1732978364595,0.9031747,96527.0,96526.0,0.30151849]
[1732978365869,0.90288644,96527.0,96526.0,0.30151849]
[1732978366320,0.9031747,96527.0,96526.0,0.30151849]
[1732978366592,0.90288644,96527.0,96526.0,0.30151849]
[1732978367271,0.9031747,96527.0,96526.0,0.30151849]
[1732978368176,0.9031747,96527.0,96526.0,0.0028637]
[1732978369487,0.90288644,96527.0,96526.0,0.0028637]
[1732978369716,0.9031747,96527.0,96526.0,0.0028637]
[1732978370162,0.90288644,96527.0,96526.0,0.0028637]
[1732978370374,0.9031747,96527.0,96526.0,0.0028637]
[1732978371482,0.90288644,96527.0,96526.0,0.0028637]
[1732978376326,0.90288644,96527.0,96526.0,0.0008637]
[1732978377639,0.90288644,96527.0,96526.0,0.0018637]
[1732978377859,0.90388644,96527.0,96526.0,0.0018637]
[1732978378095,0.90388644,96527.0,96526.0,0.0008637]
[1732978378339,0.90288644,96527.0,96526.0,0.0008637]
[1732978379467,0.90288644,96527.0,96526.0,0.0018637]
[1732978379927,0.90375044,96527.0,96526.0,0.0018637]
[1732978381060,0.90375044,96527.0,96526.0,0.25477276]
[1732978381275,0.90375044,96527.0,96526.0,0.25377276]
[1732978381498,0.80015344,96527.0,96526.0,0.26331241]
[1732978382048,0.80015344,96527.0,96526.0,0.36691141]
[1732978382166,0.80015344,96527.0,96526.0,0.29402433]
[1732978382617,0.80015344,96527.0,96526.0,0.26331241]
[1732978382856,0.90475044,96527.0,96526.0,0.26331241]
[1732978383083,0.90475044,96527.0,96526.0,0.25377276]
[1732978383311,0.80015344,96527.0,96526.0,0.26332188]
[1732978383747,0.80015344,96527.0,96526.0,0.26432188]
[1732978384261,0.80015344,96527.0,96526.0,0.26332188]
[1732978384759,0.80015344,96527.0,96526.0,0.26732188]
[1732978385248,0.80115344,96527.0,96526.0,0.36892088]
[1732978385479,0.80015344,96527.0,96526.0,0.36692088]
[1732978385722,0.80115344,96527.0,96526.0,0.37192088]
[1732978385985,0.80115344,96527.0,96526.0,0.37392088]
[1732978387401,0.80015344,96527.0,96526.0,0.72272991]
[1732978387629,0.80015344,96527.0,96526.0,0.70206392]
[1732978387884,0.80015344,96527.0,96526.0,0.41928786]
[1732978388130,0.80015344,96527.0,96526.0,0.41828786]
[1732978388365,0.80015344,96527.0,96526.0,0.41928786]
[1732978388596,0.80015344,96527.0,96526.0,0.73297417]
[1732978388844,0.80115344,96527.0,96526.0,0.70131893]
[1732978389096,0.80015344,96527.0,96526.0,0.69031893]
[1732978389326,0.10015344,96527.0,96526.0,0.37963262]
[1732978389572,0.10115344,96527.0,96526.0,0.27703362]
[1732978389831,0.10115344,96527.0,96526.0,0.38063262]
[1732978390718,0.80115344,96527.0,96526.0,0.38063262]
[1732978394713,0.10115344,96527.0,96526.0,0.38063262]
[1732978397048,0.10115344,96527.0,96526.0,0.26732188]
[1732978397327,0.20475044,96527.0,96526.0,0.26732188]
[1732978397588,0.20475044,96527.0,96526.0,0.25777276]
[1732978397810,0.20475044,96527.0,96526.0,0.25640891]
[1732978398021,0.20475044,96527.0,96526.0,0.2658428]
[1732978398234,0.20475044,96527.0,96526.0,0.26720665]
[1732978398452,0.20475044,96527.0,96526.0,0.26420665]
[1732978398684,0.20375044,96527.0,96526.0,0.26620665]
[1732978399139,0.20375044,96527.0,96526.0,0.39605334]
[1732978399388,0.20375044,96527.0,96526.0,0.12050665]
[1732978400328,0.20375044,96527.0,96526.0,0.10807276]
[1732978400551,0.20375044,96527.0,96526.0,0.11650665]
[1732978400773,0.90375044,96527.0,96526.0,0.10707276]
[1732978400996,0.90375044,96527.0,96526.0,0.11207276]
[1732978400997,0.90475044,96527.0,96526.0,0.11207276]
[1732978401215,0.90375044,96527.0,96526.0,0.10507276]
[1732978401459,0.90375044,96527.0,96526.0,0.14050665]
[1732978401681,0.20475044,96527.0,96526.0,0.14550665]
[1732978404191,0.90475044,96527.0,96526.0,0.14550665]
[1732978404635,0.90475044,96527.0,96526.0,0.13607276]
[1732978404839,0.90475044,96527.0,96526.0,0.14554695]
[1732978407036,0.90475044,96527.0,96526.0,0.01833789]
[1732978407796,0.90475044,96527.0,96526.0,0.0088637]
[1732978409158,0.90375044,96527.0,96526.0,0.0038637]
[1732978409368,0.90375044,96527.0,96526.0,0.0058637]
[1732978409625,0.90375044,96527.0,96526.0,0.0028637]
[1732978410124,0.90375044,96527.0,96526.0,0.0038637]
[1732978410638,0.90375044,96527.0,96526.0,0.0028637]
[1732978410905,0.90375044,96527.0,96526.0,0.0058637]
[1732978411108,0.90375044,96527.0,96526.0,0.01538898]
[1732978411331,0.90375044,96527.0,96526.0,0.0038637]
[1732978411553,0.90375044,96527.0,96526.0,0.10507276]
[1732978411793,0.90375044,96527.0,96526.0,0.14059144]
[1732978411794,0.90475044,96527.0,96526.0,0.14059144]
[1732978412095,0.90375044,96527.0,96526.0,0.13759144]
[1732978412305,0.20375044,96527.0,96526.0,0.13107276]
[1732978412562,0.20375044,96527.0,96526.0,0.14059144]
[1732978413041,0.20375044,96527.0,96526.0,0.14259144]
[1732978413489,0.20375044,96527.0,96526.0,0.14059144]
[1732978413921,0.20375044,96527.0,96526.0,0.14122759]
[1732978414452,0.20375044,96527.0,96526.0,0.13922759]
[1732978414665,0.20375044,96527.0,96526.0,0.13959144]
[1732978414887,0.20375044,96527.0,96526.0,0.14222759]
[1732978415359,0.90375044,96527.0,96526.0,0.13822759]
[1732978415604,0.90375044,96527.0,96526.0,0.14222759]
[1732978416107,0.90375044,96527.0,96526.0,0.0048637]
[1732978416553,0.90375044,96527.0,96526.0,0.0068637]
[1732978421292,0.20375044,96527.0,96526.0,0.0068637]
[1732978421805,0.20375044,96527.0,96526.0,0.01638919]
[1732978422044,0.20375044,96527.0,96526.0,0.0068637]
[1732978422287,0.20375044,96527.0,96526.0,0.01638919]
[1732978422527,0.20375044,96527.0,96526.0,0.0068637]
[1732978422758,0.20375044,96527.0,96526.0,0.01638919]
[1732978422978,0.20375044,96527.0,96526.0,0.01038919]